[Event "GER-ch Youth-U18 2022"]
[Site "Willingen"]
[Date "2022.06.06"]
[Round "3.6"]
[White "Weidemann, Jakob"]
[Black "Dahl, Christoph"]
[Result "0-1"]
[ECO "B94"]
[WhiteElo "2047"]
[BlackElo "2368"]
[Annotator "TA"]
[PlyCount "90"]
[EventDate "2022.06.05"]
[EventType "swiss"]
[EventRounds "9"]
[EventCountry "GER"]
[SourceTitle "playchess.com"]
[Source "ChessBase"]
[SourceQuality "1"]
[TimeControl "40/4500+30:900+30"]

{[%evp 13,90,-6,30,0,9,0,3,0,0,0,0,-61,-56,-164,-79,-99,-43,-52,0,-258,-161,-160,-170,-207,-214,-211,-216,-410,-407,-587,-570,-623,-330,-325,-344,-341,-325,-328,-337,-716,-714,-679,-704,-779,-541,-516,-331,-328,-252,-230,-228,-541,-315,-388,-327,-326,-295,-312,-300,-276,-233,-274,-300,-386,-385,-385,-374,-397,-407,-427,-404,-474,-457,-433,-417,-569,-545,-514,-479]} 1. e4 {[%emt 0:00:00]} c5 {[%emt 0:00:00]} 2. Nf3 {[%emt 0:00:00]} d6 {[%emt 0:00:00]} 3. d4 {[%emt 0:00:00]} cxd4 {[%emt 0:00:00]} 4. Nxd4 {[%emt 0:00:00]} Nf6 {[%emt 0:00:00]} 5. Nc3 {[%emt 0:00:00]} a6 {[%emt 0:00:00]} 6. Bg5 {[%emt 0:00:00]} Nbd7 {[%emt 0:00:00]} 7. f4 {[%emt 0:00:00]} Qc7 {[%emt 0:00:00]} 8. Qf3 {[%emt 0:00:00] B94: Sicilian Najdorf: 6 Bg5 Nbd7.} b5 {[%emt 0:00:00] Nowadays more popular than 8...h6.} 9. O-O-O {[%emt 0:00:00] Black should prevent Bxf6.} Bb7 {[%emt 0:00:00]} 10. Bd3 {[%emt 0:00:00] The position is equal.} g6 {[%emt 0:00:00]} 11. Rhe1 {[%emt 0:00:00]} Bg7 {[%emt 0:00:00]} 12. Qg3 {[%emt 0:14:46] [#]} ({Better is} 12. Nd5 $11 Nxd5 13. exd5) 12... O-O $146 {[%emt 0:01:08] ...b4 is the strong threat.} ({Predecessor:} 12... e5 13. fxe5 dxe5 14. Rf1 b4 15. Nce2 Nxe4 16. Bxe4 Bxe4 17. Rxf7 Bf8 18. Rxd7 {1-0 (18) Vignalou,J (1732)-Beaudry,M (1848) Longueuil 2019}) 13. f5 {[%emt 0:20:39] [#]} ({White should play} 13. a3 $15) 13... Rfc8 {[%emt 0:14:42]} (13... b4 $1 $19 {[%cal Rb4c3]} 14. Na4 Qa5) 14. a3 {[%emt 0:09:35]} Nc5 {[%emt 0:14:12]} (14... Ne5 $17 {[%cal Ob5b4] aiming for ...b4!} 15. Qh4 Rab8) 15. Kb1 {[%emt 0:04:32]} Qb6 {[%emt 0:02:06]} (15... Rab8 $1 $15) 16. Qf2 $2 {[%emt 0:11:08][%mdl 8192] Black keeps a firm grip on the game.} (16. fxg6 $1 $11 hxg6 17. Bxf6 Bxf6 18. Nd5 Bxd5 19. exd5) 16... Nxd3 {[%emt 0:10:16]} 17. Rxd3 {[%emt 0:02:05][%cal Oc3d5]} Rc4 {[%emt 0:03:50] White must now prevent ...b4.} 18. Qd2 {[%emt 0:06:24]} Rac8 {[%emt 0:03:47]} 19. Bxf6 {[%emt 0:06:56]} Bxf6 {[%emt 0:00:15] A strong pair of Bishops.} 20. Rd1 $2 {[%emt 0:00:43]} (20. Nb3 {might work better.}) 20... b4 $19 {[%emt 0:09:01]} 21. Na4 {[%emt 0:02:51]} (21. axb4 $142 Rxb4 22. Nb3) 21... Qc7 {[%emt 0:02:42]} 22. Qe2 {[%emt 0:02:10]} Bxd4 {[%emt 0:01:48]} 23. Rxd4 {[%emt 0:00:09]} Rxc2 {[%emt 0:00:10]} 24. R1d2 {[%emt 0:01:20][%cal Rd2c2]} Rc1+ {[%emt 0:00:59]} ({Worse is} 24... b3 25. Nc3 $17) 25. Ka2 {[%emt 0:00:12]} bxa3 {[%emt 0:00:09]} 26. bxa3 {[%emt 0:00:58]} (26. b3) 26... Bc6 {[%emt 0:02:08]} 27. Nb2 {[%emt 0:00:43]} Bb5 {[%emt 0:01:02]} 28. Qe3 {[%emt 0:00:49]} Qb6 {[%emt 0:04:27]} 29. Qb3 {[%emt 0:00:58] Against Bc4} R8c3 {[%emt 0:01:31]} 30. Na4 {[%emt 0:00:59]} Rxb3 {[%emt 0:00:53] Dancing on a razor blade.} ({Not} 30... Bc4 31. Nxb6 Bxb3+ 32. Kb2 $15) 31. Nxb6 {[%emt 0:00:10] [#]} Rcc3 {[%emt 0:01:22]} 32. a4 {[%emt 0:00:39]} (32. Rb4 {was the crucial defense.} Rxb4 33. axb4) 32... Bd3 {[%emt 0:00:30] ( -> ...Ra3+)} 33. Nc4 {[%emt 0:01:17] Inhibits Ra3+.} Bxc4 {[%emt 0:01:51]} 34. Rxc4 {[%emt 0:00:09]} Rxc4 {[%emt 0:00:08]} 35. Kxb3 {[%emt 0:00:07]} Rxe4 {[%emt 0:00:08][%mdl 4096] Endgame KR-KR} 36. f6 {[%emt 0:00:16]} Kf8 {[%emt 0:00:55]} 37. Rc2 {[%emt 0:00:26][%cal Rc2c8]} exf6 {[%emt 0:00:55][%cal Be7f6,Bf6f5,Bf5f4][%mdl 32]} 38. Rc6 {[%emt 0:00:27]} a5 {[%emt 0:01:08]} 39. Rxd6 {[%emt 0:00:53]} Kg7 {[%emt 0:00:47]} 40. Rd5 {[%emt 0:00:22]} Re5 {[%emt 0:00:07]} 41. Rd2 {[%emt 0:15:09]} f5 {[%emt 0:15:26]} 42. Rf2 {[%emt 0:01:47]} g5 {[%emt 0:00:18]} 43. Kc4 {[%emt 0:00:17]} Kg6 {[%emt 0:00:23] And now ...f4 would win.} 44. Rd2 {[%emt 0:01:22]} f4 {[%emt 0:00:12]} 45. Kd4 {[%emt 0:00:26]} Kf5 {[%emt 0:00:19] Weighted Error Value: White=0.69/Black=0.36} 0-1

[Event "GER-ch Youth-U18 2022"]
[Site "Willingen"]
[Date "2022.06.06"]
[Round "3.7"]
[White "Bornholdt, Joa Max"]
[Black "Musiolik, David"]
[Result "0-1"]
[ECO "D31"]
[WhiteElo "2155"]
[BlackElo "2220"]
[Annotator "TA"]
[PlyCount "92"]
[EventDate "2022.06.05"]
[EventType "swiss"]
[EventRounds "9"]
[EventCountry "GER"]
[SourceTitle "playchess.com"]
[Source "ChessBase"]
[SourceQuality "1"]
[TimeControl "40/4500+30:900+30"]

{[%evp 9,92,22,28,22,22,18,17,20,33,10,25,0,0,-35,0,-18,-11,-54,-60,-87,-79,-75,-41,-136,-110,-106,-115,-124,-129,-126,-125,-212,-218,-206,-212,-213,-210,-206,-193,-322,-158,-151,-155,-156,-139,-160,-154,-212,-208,-208,-186,-312,-324,-314,-311,-300,-206,-409,-339,-337,-258,-275,-260,-267,-267,-252,-163,-525,-527,-540,-562,-498,-419,-1177,-833,-29983,-29984,-29984,-29985,-29985,-29986,-29986,-29987,-29987,-29985]} 1. d4 {[%emt 0:00:00]} d5 {[%emt 0:00:00]} 2. c4 {[%emt 0:00:00]} e6 {[%emt 0:00:00]} 3. Nc3 {[%emt 0:00:00]} a6 {[%emt 0:00:00]} 4. cxd5 {[%emt 0:00:00]} exd5 {[%emt 0:00:00]} 5. Nf3 {[%emt 0:00:00]} c6 {[%emt 0:00:00]} 6. Qc2 {[%emt 0:00:00] D31: Queen's Gambit Declined: Semi-Slav without ...Nf6 (+ Marshall Gambit and Noteboom) and Exchange Variation lines without ...Nf6.} Bd6 {[%emt 0:00:00]} 7. e4 {[%emt 0:00:00]} dxe4 {[%emt 0:00:00]} 8. Nxe4 {[%emt 0:00:00] The position is equal.} Bb4+ {[%emt 0:00:51]} 9. Nc3 {[%emt 0:00:00]} Nf6 {[%emt 0:03:18] [#]} 10. Bg5 $146 {[%emt 0:09:42]} ({Predecessor:} 10. a3 Bd6 11. Bc4 Qe7+ 12. Be3 Be6 13. Bxe6 {½-½ (13) Cvitan,O (2470)-Kambrath,Y (2397) Cattolica 2021}) 10... O-O {[%emt 0:02:02]} 11. O-O-O {[%emt 0:02:19]} Be6 {[%emt 0:03:57]} 12. Bd3 {[%emt 0:01:28][%cal Od3h7]} h6 {[%emt 0:06:31]} 13. h4 {[%emt 0:01:12][%cal Od3h7]} (13. Bxf6 $5 Qxf6 14. Kb1 $11) 13... Nbd7 {[%emt 0:16:02][%cal Bb8d7,Bd7f6,Bf6e4][%mdl 32]} (13... hxg5 $2 14. hxg5 g6 15. Bxg6 $18) 14. Bf5 {[%emt 0:19:28]} Bxf5 {[%emt 0:08:05]} 15. Qxf5 {[%emt 0:01:44][%cal Oc3e4]} Qa5 {[%emt 0:02:52]} (15... hxg5 16. hxg5 g6 17. Qh3 $16) 16. Qc2 {[%emt 0:12:24]} Rfe8 {[%emt 0:13:59]} (16... hxg5 $6 17. hxg5 Bxc3 18. bxc3 $11) 17. Bxf6 {[%emt 0:03:35]} Nxf6 {[%emt 0:00:19]} ({Much worse is} 17... gxf6 $6 18. a3 Bxc3 19. Qxc3 $11) 18. Ne5 {[%emt 0:00:22]} c5 {[%emt 0:05:05]} 19. Nc4 {[%emt 0:03:25]} Qc7 {[%emt 0:00:43]} 20. d5 {[%emt 0:03:27]} (20. Ne3 $17) 20... Qf4+ $19 {[%emt 0:02:00]} 21. Ne3 {[%emt 0:00:06]} Bxc3 {[%emt 0:01:43]} 22. bxc3 {[%emt 0:03:58]} Ne4 {[%emt 0:00:59]} 23. Rh3 {[%emt 0:01:16]} Qxf2 {[%emt 0:01:50]} ({And not} 23... Nxf2 24. Rf3 Qxh4 25. g3 Nxd1 26. gxh4 Nxe3 27. Qf2 $11) 24. Rf3 {[%emt 0:02:47]} (24. Rf1 $142 Qxc2+ 25. Kxc2) 24... Qxc2+ {[%emt 0:03:34]} (24... Qxh4 $19 {and Black stays clearly on top. And now ...Rad8 would win.} 25. Kb2 Qg5) 25. Kxc2 $17 {[%emt 0:00:02]} Nd6 {[%emt 0:01:01]} 26. Nf5 {[%emt 0:02:08]} Rad8 {[%emt 0:00:34]} 27. Nxd6 {[%emt 0:05:05]} Rxd6 {[%emt 0:00:05][%mdl 4096] Endgame KRR-KRR} 28. Rfd3 {[%emt 0:00:11]} (28. g3 $17 {is a better defense.}) 28... Re4 $19 {[%emt 0:04:03]} 29. g3 {[%emt 0:00:06]} b5 {[%emt 0:01:33][%cal Bb7b5,Bb5b4][%mdl 32]} 30. Kd2 {[%emt 0:02:37]} (30. R3d2 $142) 30... c4 {[%emt 0:02:38]} 31. Rd4 {[%emt 0:00:04]} Rxd4+ {[%emt 0:00:04]} 32. cxd4 {[%emt 0:00:04] KR-KR} b4 {[%emt 0:02:17]} ({Not} 32... Rxd5 $2 33. Kc3 $19) 33. Ke3 $2 {[%emt 0:00:13]} (33. Rc1 c3+ 34. Kd3) 33... Rxd5 {[%emt 0:01:22]} 34. Ke4 {[%emt 0:00:14]} Rd7 {[%emt 0:00:19]} 35. d5 {[%emt 0:00:16]} c3 {[%emt 0:00:50]} 36. Kd4 {[%emt 0:00:47]} Kf8 {[%emt 0:01:08]} 37. Kc5 {[%emt 0:00:05]} a5 {[%emt 0:00:19][%cal Ba6a5,Ba5a4,Ba4b3,Bb3b2][%mdl 32] aiming for ...Ke7.} 38. Kc6 $2 {[%emt 0:01:23]} (38. d6 {nothing else works.}) 38... Ke8 {[%emt 0:01:15] White must now prevent ...a4.} 39. d6 {[%emt 0:00:30]} a4 {[%emt 0:01:39]} 40. Re1+ {[%emt 0:03:21]} Kd8 {[%emt 0:00:16]} 41. Kc5 {[%emt 0:16:27]} (41. Kb5 $142 Rxd6 42. Kxb4) 41... Rb7 {[%emt 0:00:00] Threatens to win with ...b3.} 42. Kc6 {[%emt 0:00:00] [#]} b3 $1 {[%emt 0:00:00] Black mates.} 43. axb3 {[%emt 0:00:00] [#]} axb3 $1 {[%emt 0:00:00]} 44. Ra1 {[%emt 0:00:00]} Rb8 45. d7 {[%emt 0:00:00]} b2 {[%emt 0:00:00]} 46. Re1 {[%emt 0:00:00] [#]} Rb6+ $3 {[%emt 0:00:00][%mdl 512] Weighted Error Value: White=0.62/Black=0.27 (precise)} 0-1

[Event "GER-ch Youth-U18 2022"]
[Site "Willingen"]
[Date "2022.06.06"]
[Round "3.8"]
[White "Hassemeier, Mika"]
[Black "Geltz, Noah"]
[Result "1/2-1/2"]
[ECO "D31"]
[WhiteElo "2127"]
[BlackElo "2156"]
[Annotator "TA"]
[PlyCount "45"]
[EventDate "2022.06.05"]
[EventType "swiss"]
[EventRounds "9"]
[EventCountry "GER"]
[SourceTitle "playchess.com"]
[Source "ChessBase"]
[SourceQuality "1"]
[TimeControl "40/4500+30:900+30"]

{[%evp 9,45,18,32,23,29,25,27,22,28,27,22,11,35,14,10,16,20,0,0,0,0,0,1,0,0,-40,-40,-41,-34,-36,-28,-37,-36,-35,-35,-34,-14,-20]} 1. d4 {[%emt 0:00:00]} d5 {[%emt 0:00:00]} 2. c4 {[%emt 0:00:00]} e6 {[%emt 0:00:00]} 3. Nc3 {[%emt 0:00:00]} a6 {[%emt 0:00:00]} 4. cxd5 {[%emt 0:00:00]} exd5 {[%emt 0:00:00]} 5. Bf4 {[%emt 0:00:00]} c6 {[%emt 0:00:00]} 6. e3 {[%emt 0:00:00] D31: Queen's Gambit Declined: Semi-Slav without ...Nf6 (+ Marshall Gambit and Noteboom) and Exchange Variation lines without ...Nf6.} Bd6 {[%emt 0:00:00]} 7. Bxd6 {[%emt 0:00:00]} Qxd6 {[%emt 0:00:00]} 8. Bd3 {[%emt 0:00:00] White has an edge.} Ne7 {[%emt 0:00:00]} 9. Qc2 {[%emt 0:00:00]} g6 {[%emt 0:00:00]} 10. Nge2 {[%emt 0:00:00]} Bf5 {[%emt 0:00:00]} 11. f3 {[%emt 0:02:26]} Bxd3 {[%emt 0:03:03]} 12. Qxd3 {[%emt 0:00:10]} Nd7 {[%emt 0:08:49] [#]} 13. e4 $146 {[%emt 0:11:50]} ({Predecessor:} 13. O-O-O O-O-O 14. e4 dxe4 15. fxe4 f5 16. Kb1 Kb8 17. exf5 Nxf5 18. g4 Ne7 19. Ne4 {½-½ (51) David,A (2436)-Brinovec,D (2279) Graz 2020}) 13... dxe4 {[%emt 0:01:16]} 14. fxe4 {[%emt 0:02:32]} O-O {[%emt 0:12:55]} 15. Rd1 {[%emt 0:20:54]} Rad8 {[%emt 0:02:44]} 16. O-O {[%emt 0:07:40]} c5 {[%emt 0:02:15]} 17. Qg3 {[%emt 0:06:11]} Qxg3 {[%emt 0:02:31]} 18. Nxg3 {[%emt 0:00:34]} cxd4 {[%emt 0:00:59]} 19. Rxd4 {[%emt 0:00:50] [#] aiming for Rfd1.} Nc6 {[%emt 0:06:43]} 20. Rd6 {[%emt 0:02:50]} Nc5 {[%emt 0:02:54]} 21. Rfd1 {[%emt 0:01:38]} Rxd6 {[%emt 0:00:58]} 22. Rxd6 {[%emt 0:00:08]} Rd8 {[%emt 0:05:56]} 23. Rxd8+ {[%emt 0:02:44] Weighted Error Value: White=0.08 (flawless) /Black=0.04 (flawless)} 1/2-1/2

[Event "GER-ch Youth-U18 2022"]
[Site "Willingen"]
[Date "2022.06.06"]
[Round "3.9"]
[White "Zackrisson, Peter"]
[Black "Boder, Jan"]
[Result "1/2-1/2"]
[ECO "C83"]
[WhiteElo "2015"]
[BlackElo "2334"]
[Annotator "TA"]
[PlyCount "83"]
[EventDate "2022.06.05"]
[EventType "swiss"]
[EventRounds "9"]
[EventCountry "GER"]
[SourceTitle "playchess.com"]
[Source "ChessBase"]
[SourceQuality "1"]
[TimeControl "40/4500+30:900+30"]

{[%evp 22,83,29,21,22,19,24,16,20,18,20,26,16,25,25,25,17,13,22,20,43,22,24,25,20,17,33,31,25,19,50,53,55,56,77,70,76,76,86,76,87,0,83,82,92,88,87,0,98,93,99,20,20,12,11,8,6,6,21,21,18,18,20,25]} 1. e4 {[%emt 0:00:00]} e5 {[%emt 0:00:00]} 2. Nf3 {[%emt 0:00:00]} Nc6 {[%emt 0:00:00]} 3. Bb5 {[%emt 0:00:00]} a6 {[%emt 0:00:00]} 4. Ba4 {[%emt 0:00:00]} Nf6 {[%emt 0:00:00]} 5. O-O {[%emt 0:00:00]} Nxe4 {[%emt 0:00:00]} 6. d4 {[%emt 0:00:00]} b5 {[%emt 0:00:00]} 7. Bb3 {[%emt 0:00:00]} d5 {[%emt 0:00:00][%cal Bd7d5,Bd5d4,Bd4d3,Bd3c2][%mdl 32]} 8. dxe5 {[%emt 0:00:00]} Be6 {[%emt 0:00:00]} 9. c3 {[%emt 0:00:00]} Be7 {[%emt 0:00:00]} 10. Nbd2 {[%emt 0:00:00][%cal Bb1d2,Bd2e4,Be4c5][%mdl 32]} Nc5 {[%emt 0:00:00]} 11. Bc2 {[%emt 0:00:00]} d4 {[%emt 0:00:00]} 12. Ne4 {[%emt 0:20:37][%cal Rf3d4]} d3 {[%emt 0:26:08] C83: Open Ruy Lopez: 9 c3 Be7.} 13. Nxc5 {[%emt 0:01:44]} dxc2 {[%emt 0:00:44]} 14. Qxd8+ {[%emt 0:00:11]} Rxd8 {[%emt 0:01:32]} ({But not} 14... Bxd8 15. Nxe6 fxe6 16. Be3 $16) 15. Nxe6 {[%emt 0:00:14]} fxe6 {[%emt 0:00:08]} 16. Be3 {[%emt 0:04:17]} Rd5 {[%emt 0:05:10]} 17. Rac1 {[%emt 0:06:46][%cal Ba1c1,Bc1c2,Bc2c4][%mdl 32]} Nxe5 {[%emt 0:02:02]} 18. Nxe5 {[%emt 0:01:37]} Rxe5 {[%emt 0:00:04]} 19. Rxc2 {[%emt 0:00:14]} Kf7 {[%emt 0:03:26]} 20. c4 {[%emt 0:03:49] [#]} Bd6 $146 {[%emt 0:03:36]} ({Predecessor:} 20... b4 21. Rd1 Rd8 22. Rxd8 Bxd8 23. Kf1 Bg5 24. Bd4 Ra5 25. b3 Bf6 26. Be3 Bg5 {½-½ (67) Anand,V (2751)-Mamedyarov,S (2759) Stavanger 2022}) 21. Rd1 {[%emt 0:05:44]} bxc4 {[%emt 0:04:18]} 22. Rxc4 {[%emt 0:00:30]} Ra5 {[%emt 0:03:07]} 23. a3 {[%emt 0:02:30]} Rb8 {[%emt 0:00:34]} 24. Bd4 {[%emt 0:02:19]} Rd5 {[%emt 0:01:55] [#] aiming for ...e5.} 25. Re1 {[%emt 0:01:07]} g5 {[%emt 0:09:18]} 26. Bc3 {[%emt 0:07:20]} h5 {[%emt 0:00:32]} 27. g3 {[%emt 0:07:51]} e5 {[%emt 0:05:30]} 28. Rce4 {[%emt 0:01:38][%cal Rc3e5]} Rbb5 {[%emt 0:00:22]} 29. Kg2 {[%emt 0:02:53]} Rbc5 {[%emt 0:02:21]} 30. R1e2 {[%emt 0:01:08] White is more active.} Rb5 {[%emt 0:01:34]} 31. Re1 {[%emt 0:00:54]} (31. a4 $16 Rbc5 32. R2e3) 31... Kg6 {[%emt 0:00:37]} (31... Rbc5 $1 $11 {keeps the balance.}) 32. h3 $16 {[%emt 0:07:18]} Rbc5 {[%emt 0:06:20]} 33. Kf3 {[%emt 0:02:25]} Rd3+ {[%emt 0:00:50]} 34. Kg2 {[%emt 0:00:44]} (34. R1e3 $16 Rdd5 35. Re1) 34... Kf5 {[%emt 0:02:47]} (34... Rdd5 $1 $11 {remains equal.}) 35. Ra4 {[%emt 0:00:59]} a5 {[%emt 0:05:11]} 36. Bxa5 {[%emt 0:01:43]} (36. g4+ $16 hxg4 37. hxg4+ Kg6 38. Rh1 (38. Bxa5 Rc2 $14)) 36... Rd4 $11 {[%emt 0:01:47] The position is equal.} 37. Bb4 {[%emt 0:04:30]} Rb5 {[%emt 0:02:32]} 38. Ra7 {[%emt 0:02:48] With the idea Bc3.} Bxb4 {[%emt 0:00:39]} 39. axb4 {[%emt 0:00:09]} Rc4 {[%emt 0:01:01]} 40. b3 {[%emt 0:00:37]} Rcxb4 {[%emt 0:00:49]} 41. Rxc7 {[%emt 0:15:13]} Rxb3 {[%emt 0:15:19]} 42. Rf7+ {[%emt 0:00:21] Weighted Error Value: White=0.14 (very precise) /Black=0.15 (very precise)} 1/2-1/2

[Event "GER-ch Youth-U18 2022"]
[Site "Willingen"]
[Date "2022.06.06"]
[Round "3.10"]
[White "Rohde, Niclas"]
[Black "Jeschke, Jan"]
[Result "0-1"]
[ECO "B23"]
[WhiteElo "1730"]
[BlackElo "2130"]
[Annotator "TA"]
[PlyCount "132"]
[EventDate "2022.06.05"]
[EventType "swiss"]
[EventRounds "9"]
[EventCountry "GER"]
[SourceTitle "playchess.com"]
[Source "ChessBase"]
[SourceQuality "1"]
[TimeControl "40/4500+30:900+30"]

{[%evp 16,132,-24,-43,-38,-44,-18,-51,-42,-51,-46,-81,-82,-100,-95,-118,-78,-73,-50,-51,-38,-45,-35,-42,0,0,0,0,0,0,31,21,12,0,8,0,28,28,42,28,45,0,0,0,0,0,0,-33,-38,-27,-20,-22,-24,-48,-23,-27,-39,-177,-176,-264,-89,-93,-91,-171,-77,-289,-281,-276,-276,-372,-366,-348,-352,-405,-398,-403,-395,-515,-515,-515,-515,-579,-576,-572,-565,-547,-537,-582,-495,-517,-484,-808,-808,-921,-907,-907,-879,-1159,-1136,-3860,-3507,-1594,-1070,-1027,-1015,-966,-988,-1908,-2242,-1959,-2052,-1929,-1924,-1019,-800,-1896,-1888,-1558,-1568]} 1. e4 {[%emt 0:00:00]} c5 {[%emt 0:00:00]} 2. Nc3 {[%emt 0:00:00]} Nc6 {[%emt 0:00:00]} 3. f4 {[%emt 0:00:00]} g6 {[%emt 0:00:00]} 4. Nf3 {[%emt 0:00:00]} Bg7 {[%emt 0:00:00]} 5. d3 {[%emt 0:00:00]} e6 {[%emt 0:00:00]} 6. g3 {[%emt 0:00:00]} Nge7 {[%emt 0:00:00]} 7. Bg2 {[%emt 0:00:00]} O-O {[%emt 0:00:00]} 8. O-O {[%emt 0:00:00]} d5 {[%emt 0:00:00]} 9. h3 {[%emt 0:02:52] [#]} Bd7 $146 {[%emt 0:14:44] B24: Closed Sicilian: 3 g3 sidelines.} ({Predecessor:} 9... Rb8 10. Kh2 b5 11. e5 b4 12. Ne2 f6 13. exf6 Bxf6 14. d4 Ba6 15. dxc5 Qa5 16. Be3 Bxb2 17. Rb1 {1-0 (31) Polok,K (2272)-Golubev,M (2461) Chess.com INT 2020}) 10. Kh2 {[%emt 0:05:36]} Rc8 {[%emt 0:01:20]} 11. g4 {[%emt 0:09:51]} Nd4 {[%emt 0:15:24] Black is slightly better.} 12. Ne5 {[%emt 0:18:44]} Be8 {[%emt 0:09:59]} 13. g5 {[%emt 0:12:16]} f6 {[%emt 0:01:52][%cal Bf7f6,Bf6f5][%mdl 32]} 14. Ng4 {[%emt 0:01:09]} f5 {[%emt 0:01:22]} 15. Ne3 {[%emt 0:06:08][%cal Re4d5]} Bc6 {[%emt 0:05:22]} 16. e5 {[%emt 0:02:45]} b5 {[%emt 0:02:39]} 17. Nb1 {[%emt 0:10:49] aiming for c3.} Be8 {[%emt 0:16:04]} 18. c3 {[%emt 0:07:29]} Ndc6 {[%emt 0:00:05]} 19. Nc2 {[%emt 0:00:54]} a5 {[%emt 0:04:17][%cal Oc6e5]} 20. d4 {[%emt 0:02:02]} c4 {[%emt 0:00:52]} 21. a3 {[%emt 0:01:21]} Qb6 {[%emt 0:01:00]} 22. Bd2 {[%emt 0:02:19]} Kf7 {[%emt 0:03:06]} 23. Kg3 {[%emt 0:00:59]} Rh8 {[%emt 0:00:46]} 24. Rh1 {[%emt 0:00:32]} Rb8 {[%emt 0:00:29]} 25. Be1 {[%emt 0:00:39]} Bd7 {[%emt 0:01:02]} 26. Nd2 {[%emt 0:01:03]} b4 {[%emt 0:02:13]} 27. axb4 {[%emt 0:00:12]} axb4 {[%emt 0:00:06]} 28. Nf3 {[%emt 0:00:11]} bxc3 {[%emt 0:00:58]} 29. Bxc3 {[%emt 0:00:08]} Ra8 {[%emt 0:01:49]} 30. Qd2 {[%emt 0:00:18]} Rhb8 {[%emt 0:00:13]} 31. Ra3 {[%emt 0:01:00]} Rxa3 {[%emt 0:00:37]} 32. Nxa3 {[%emt 0:00:05]} Bf8 {[%emt 0:00:14]} 33. Ra1 {[%emt 0:00:42]} Nc8 {[%emt 0:00:16][%cal Be7c8,Bc8b6,Bb6a4][%mdl 32]} 34. Nc2 {[%emt 0:00:32]} Qb3 {[%emt 0:00:44]} 35. Nfe1 {[%emt 0:00:42]} Nb6 {[%emt 0:00:57]} 36. Rc1 {[%emt 0:01:38]} ({Only move:} 36. Ne3 $1 $15) 36... Na4 $19 {[%emt 0:00:37]} 37. Ne3 {[%emt 0:00:12]} (37. h4 {was necessary.}) 37... Nb4 $2 {[%emt 0:01:29]} ({Avoid the trap} 37... Nxb2 $2 38. Rb1 Bb4 39. Nd1 $19) (37... Nxc3 $19 38. bxc3 Ba3) 38. Bf3 $17 {[%emt 0:00:28]} Na2 {[%emt 0:01:38] Black is more active.} 39. Bd1 {[%emt 0:00:36] [#]} (39. Rc2 $17 {might work better.}) 39... Qb7 {[%emt 0:01:34]} (39... Qb5 $1 $19 {is more deadly.} 40. Bxa4 Qxa4) 40. Ra1 {[%emt 0:00:29]} (40. Bxa4 $17 {only move.} Bxa4 41. Ra1) 40... N2xc3 $19 {[%emt 0:01:07]} 41. bxc3 {[%emt 0:15:21] [#]} Nxc3 {[%emt 0:00:00][%mdl 512] Strongly threatening ...Ne4+.} 42. Qxc3 {[%emt 0:00:00] Threatens to win with Qc1.} (42. Bf3 Ne4+) 42... Bb4 {[%emt 0:00:00][%cal Bf8b4,Bb4e1,Be1d2][%mdl 96] Skewer, Deflection} 43. Qc1 {[%emt 0:00:00]} Bxe1+ {[%emt 0:00:00]} 44. Kg2 {[%emt 0:00:00]} Qb2+ {[%emt 0:00:00]} 45. Qxb2 {[%emt 0:00:00]} Rxb2+ {[%emt 0:00:00]} 46. Kf1 {[%emt 0:00:00]} Bd2 {[%emt 0:00:00] Black is clearly winning.} 47. Ra7 {[%emt 0:00:00]} Ke8 {[%emt 0:00:00]} 48. Ra8+ {[%emt 0:00:00]} Ke7 {[%emt 0:00:00]} 49. Ra7 {[%emt 0:00:00][%cal Od1a4]} Kd8 {[%emt 0:00:00]} (49... Bxe3 $2 50. Ba4 Rb8 51. Rxd7+ Kf8 52. Ke2 Bxf4 53. h4 $19) 50. Ra8+ {[%emt 0:00:00]} Kc7 {[%emt 0:00:00]} 51. Ke2 {[%emt 0:00:00]} c3 {[%emt 0:00:00] And now ...Bb5+ would win.} 52. Ba4 {[%emt 0:00:15]} Bc8 {[%emt 0:01:02]} 53. Ra5 {[%emt 0:00:56]} (53. Ra7+ $142 Bb7 54. Bd1) 53... Kb6 {[%emt 0:02:07]} 54. Rc5 {[%emt 0:00:56]} Ba6+ {[%emt 0:00:07]} 55. Kf3 {[%emt 0:00:05]} Rb4 {[%emt 0:02:48][%csl LRa4,LRd4]} 56. Nxd5+ {[%emt 0:05:44]} exd5 {[%emt 0:00:11]} 57. e6 {[%emt 0:00:11]} Rxa4 {[%emt 0:03:15]} 58. e7 {[%emt 0:00:14] [#]} Be2+ $1 {[%emt 0:00:06]} 59. Kxe2 {[%emt 0:00:35][%mdl 4096] Endgame KRB-KR} Ra8 {[%emt 0:00:47]} 60. Rxd5 {[%emt 0:00:44]} Re8 {[%emt 0:00:13]} ({Not} 60... Bxf4 61. Rd8 c2 62. Rxa8 $11) 61. Re5 {[%emt 0:00:18]} Kc6 {[%emt 0:00:29]} 62. Kd3 {[%emt 0:00:49]} Kd6 {[%emt 0:00:28]} 63. Ra5 {[%emt 0:00:11]} Rxe7 {[%emt 0:00:31]} 64. Ra6+ {[%emt 0:00:22]} Kd7 {[%emt 0:00:31] White must now prevent ...Re3+.} 65. d5 {[%emt 0:00:17]} Re3+ {[%emt 0:00:35]} 66. Kc2 {[%emt 0:00:09]} Rxh3 {[%emt 0:00:11] Weighted Error Value: White=0.56/Black=0.25 (precise)} 0-1